bitfinex-derivatives/quotes_BTCF0:USTF0_20251204
["timestamp","ask_amount","ask_price","bid_price","bid_amount"]
[1764858774339,0.05808075,92689.0,92644.0,0.16103224]
[1764858774544,0.01668,92690.0,92684.0,0.0107873]
[1764858774848,0.01668,92703.0,92694.0,0.0107862]
[1764858775033,0.01668,92703.0,92700.0,0.0107855]
[1764858775235,0.01668,92703.0,92690.0,0.27537138]
[1764858775236,0.0001619,92708.0,92707.0,0.0107847]
[1764858775429,0.01668,92716.0,92689.0,0.0001619]
[1764858775625,0.01668,92716.0,92712.0,0.010784]
[1764858775831,0.01668,92729.0,92725.0,0.0107826]
[1764858776240,0.01668,92742.0,92738.0,0.010781]
[1764858776836,0.00016181,92749.0,92738.0,0.010781]
[1764858777031,0.00016181,92749.0,92744.0,0.0107804]
[1764858777233,0.00016181,92749.0,92731.0,0.00016181]
[1764858777234,0.00258183,92749.0,92740.0,0.30996]
[1764858777437,0.00258183,92749.0,92731.0,0.00016181]
[1764858777438,0.00016181,92749.0,92747.0,0.01078]
[1764858777837,0.0002695,92766.0,92748.0,0.4]
[1764858778041,0.0538603,92816.0,92750.0,0.27537138]
[1764858778252,0.0107745,92795.0,92771.0,0.0107771]
[1764858778452,0.0107744,92796.0,92771.0,0.0107771]
[1764858778751,0.0274551,92790.0,92768.0,0.0107775]
[1764858779140,0.0001069,92781.0,92773.0,0.0107769]
[1764858779343,0.00252692,92781.0,92773.0,0.0107769]
[1764858779543,0.13832692,92781.0,92773.0,0.0107769]
[1764858779839,0.13832692,92781.0,92778.0,0.3608]
[1764858780044,0.0001069,92781.0,92779.0,0.0107763]
[1764858780244,0.05813,92779.0,92778.0,0.3608]
[1764858780446,0.07481,92768.0,92767.0,0.225]
[1764858781040,0.05813,92763.0,92762.0,0.00016172]
[1764858781349,0.06055002,92763.0,92762.0,0.00016172]
[1764858781545,0.01668,92768.0,92762.0,0.00016172]
[1764858781738,0.01768,92768.0,92767.0,0.3608]
[1764858782043,0.02068,92768.0,92767.0,0.3608]
[1764858782239,0.004,92768.0,92767.0,0.3608]
[1764858782441,0.0001069,92781.0,92767.0,0.3608]
[1764858782645,0.01668,92768.0,92767.0,0.3608]
[1764858782845,0.07481,92768.0,92767.0,0.3715776]
[1764858783353,0.0001069,92781.0,92779.0,0.0107762]
[1764858783553,0.0001069,92781.0,92780.0,0.3608]
[1764858783749,0.00252692,92781.0,92780.0,0.3608]
[1764858783945,0.0001069,92781.0,92780.0,0.3608]
[1764858784150,0.00252692,92781.0,92780.0,0.3608]
[1764858784349,0.07143692,92781.0,92780.0,0.3608]
[1764858784559,0.02567,92768.0,92767.0,0.8608]
[1764858784857,0.02567,92768.0,92767.0,0.3608]
[1764858785258,0.0041069,92781.0,92767.0,0.3608]
[1764858785557,0.0041069,92781.0,92778.0,0.0107764]
[1764858786459,0.0001069,92781.0,92778.0,0.0107764]
[1764858787259,0.01668,92790.0,92787.0,0.0107754]
[1764858787455,0.01668,92790.0,92788.0,0.3608]
[1764858787659,0.01668,92790.0,92789.0,0.0107751]
[1764858787856,0.0274539,92800.0,92788.0,0.3608]
[1764858787857,0.01668,92800.0,92799.0,0.010774]
[1764858788058,0.01668,92800.0,92788.0,0.3608]
[1764858788059,0.0274521,92816.0,92805.0,0.0107733]
[1764858788248,0.0725894,92806.0,92805.0,0.3608]
[1764858788664,0.00026938,92806.0,92805.0,0.3608]
[1764858788850,0.0725894,92806.0,92805.0,0.3608]
[1764858789053,0.0699,92798.0,92797.0,0.01114754]
[1764858789254,0.0699,92797.0,92796.0,0.3608]
[1764858789450,0.07232002,92797.0,92796.0,0.3608]
[1764858790855,0.0699,92797.0,92796.0,0.3608]
[1764858791660,0.02567,92805.0,92796.0,0.3608]
[1764858791857,0.03208002,92797.0,92796.0,0.3715743]
[1764858792057,0.0699,92797.0,92796.0,0.3608]
[1764858792958,0.02567,92805.0,92803.0,0.0107734]
[1764858793153,0.00242002,92804.0,92799.0,0.0107739]
[1764858793356,0.00242002,92804.0,92802.0,0.0107736]
[1764858793549,0.00242002,92803.0,92794.0,0.3608]
[1764858793749,0.02567,92805.0,92794.0,0.3608]
[1764858793750,0.07232002,92795.0,92794.0,0.3608]
[1764858793958,0.0699,92795.0,92794.0,0.3608]
[1764858794164,0.0107747,92793.0,92792.0,0.01097782]
[1764858794356,0.01319472,92793.0,92790.0,0.00016172]
[1764858794561,0.00242002,92791.0,92790.0,0.00016172]
[1764858795062,0.14242002,92791.0,92790.0,0.00016172]
[1764858795363,0.54242002,92791.0,92790.0,0.00016172]
[1764858795659,0.54242002,92791.0,92765.0,0.01106691]
[1764858795660,0.0107772,92772.0,92765.0,0.01106691]
[1764858795863,0.27537138,92780.0,92767.0,0.0107776]
[1764858796053,0.27537138,92780.0,92763.0,0.3608]
[1764858796054,0.3608,92784.0,92769.0,0.0107773]
[1764858796256,0.3608,92784.0,92763.0,0.3608]
[1764858796257,0.0107769,92774.0,92768.0,0.0107776]
[1764858796570,0.00242002,92769.0,92768.0,0.0107776]
[1764858796759,0.00016142,92780.0,92778.0,0.0107764]
[1764858796963,0.00242002,92779.0,92775.0,0.0107768]
[1764858797165,0.00242002,92776.0,92773.0,0.010777]
[1764858797666,0.010777,92773.0,92772.0,0.3608]
[1764858797858,0.00242002,92773.0,92769.0,0.0107775]
[1764858798053,0.00242002,92770.0,92769.0,0.0107775]
[1764858798266,0.0107766,92777.0,92771.0,0.0107771]
[1764858798457,0.00242002,92772.0,92771.0,0.0107771]
[1764858798857,0.00242002,92772.0,92768.0,0.0117776]
[1764858799052,0.00242002,92769.0,92768.0,0.001]
[1764858799254,0.07232002,92769.0,92768.0,0.001]
[1764858799866,0.0806776,92768.0,92763.0,0.3716698]
[1764858800165,0.09799002,92764.0,92763.0,0.3608]
[1764858800469,0.02567,92764.0,92763.0,0.3608]
[1764858800960,0.05533,92764.0,92763.0,0.3715782]
[1764858801159,0.05533,92764.0,92763.0,0.3725782]
[1764858801771,0.02567,92764.0,92763.0,0.3725782]
[1764858802359,0.0107766,92777.0,92776.0,0.0107765]
[1764858802658,0.0806766,92777.0,92776.0,0.0107765]
[1764858803064,0.080677,92773.0,92772.0,0.3608]
[1764858803265,0.08309702,92773.0,92772.0,0.3608]
[1764858803677,0.080677,92773.0,92772.0,0.3608]
[1764858804161,0.080677,92773.0,92763.0,0.3608]
[1764858804162,0.106348,92764.0,92763.0,0.3608]
[1764858804363,0.106348,92764.0,92763.0,0.2596506]
[1764858804364,0.10876802,92764.0,92763.0,0.2596506]
[1764858804566,0.0699,92751.0,92749.0,0.02845143]
[1764858804774,0.0806804,92744.0,92743.0,0.02845143]
[1764858804979,0.0699,92738.0,92735.0,0.02845143]
[1764858805157,0.07232002,92738.0,92737.0,0.02899785]
[1764858805666,0.43312002,92738.0,92737.0,0.02899785]
[1764858806271,0.43312002,92738.0,92737.0,0.05744928]
[1764858806468,0.43312002,92738.0,92737.0,0.02899785]
[1764858806668,0.3608,92738.0,92737.0,0.11105905]
[1764858807367,0.00016172,92747.0,92740.0,0.0107808]
[1764858807568,0.00258174,92747.0,92746.0,0.07128]
[1764858807757,0.00258174,92747.0,92746.0,0.1001553]
[1764858807962,0.07248174,92747.0,92746.0,0.1001553]
[1764858808163,0.07248174,92747.0,92746.0,0.0288753]
[1764858808365,0.00016172,92747.0,92746.0,0.1001553]
[1764858808873,0.07248174,92747.0,92746.0,0.1001553]
[1764858809065,0.07348174,92747.0,92746.0,0.0288753]
[1764858809463,0.07348174,92747.0,92735.0,0.03793524]
[1764858809464,0.0806811,92738.0,92735.0,0.02885597]
[1764858809660,0.08310112,92738.0,92737.0,0.02878518]
[1764858810268,0.22310112,92738.0,92737.0,0.02878518]
[1764858810473,0.0806821,92729.0,92721.0,0.02885597]
[1764858810771,0.08310212,92729.0,92728.0,0.02882532]
[1764858810969,0.07232002,92729.0,92728.0,0.02882532]
[1764858811168,0.0699,92729.0,92728.0,0.10010532]
[1764858811365,0.07001099,92729.0,92728.0,0.02882532]
[1764858812073,0.07001099,92729.0,92728.0,0.00016172]
[1764858813076,0.09568099,92729.0,92728.0,0.00016172]
[1764858813266,0.09668099,92729.0,92728.0,0.00016172]
[1764858813466,0.09768099,92729.0,92728.0,0.00016172]
[1764858813668,0.09768099,92729.0,92728.0,0.08627172]
[1764858813669,0.07201099,92729.0,92728.0,0.08627172]
[1764858813864,0.00111099,92729.0,92728.0,0.08627172]
[1764858814183,0.08469099,92729.0,92728.0,0.08627172]
[1764858814473,0.11218099,92729.0,92728.0,0.00016172]
[1764858815064,0.1135195,92729.0,92728.0,0.00016172]
[1764858815271,0.4743195,92729.0,92728.0,0.00016172]
[1764858815771,0.0933641,92712.0,92711.0,0.01084625]
[1764858815970,0.0933641,92712.0,92711.0,0.02859542]
[1764858816169,0.08391851,92712.0,92711.0,0.01092392]
[1764858816365,0.09470261,92712.0,92711.0,0.3608]
[1764858816872,0.09470261,92712.0,92711.0,0.3618]
[1764858817180,0.08391851,92712.0,92711.0,0.3618]
[1764858817376,0.08391851,92712.0,92711.0,0.3608]
[1764858817681,0.09470261,92712.0,92711.0,0.3608]
[1764858818180,0.08258,92707.0,92706.0,0.01099065]
[1764858818366,0.1208551,92703.0,92702.0,0.00016172]
[1764858818566,0.12327512,92703.0,92702.0,0.00016172]
[1764858819278,0.12461363,92703.0,92702.0,0.00016172]
[1764858819673,0.12661363,92703.0,92702.0,0.00016172]
[1764858819873,0.63221363,92703.0,92702.0,0.00016172]
[1764858820176,0.08833853,92703.0,92702.0,0.08627172]
[1764858820380,0.00375853,92703.0,92702.0,0.08627172]
[1764858820582,0.00375853,92703.0,92702.0,0.00016172]
[1764858820583,0.12761363,92703.0,92702.0,0.00016172]
[1764858821183,0.10012363,92703.0,92702.0,0.04005172]
[1764858821772,0.08933853,92703.0,92702.0,0.04005172]
[1764858821973,0.11240853,92703.0,92702.0,0.00016172]
[1764858822377,0.08854,92684.0,92683.0,0.3608]
[1764858822683,0.08867397,92684.0,92683.0,0.3608]
[1764858823280,0.0993275,92683.0,92674.0,0.3609618]
[1764858823478,0.10174752,92683.0,92678.0,0.01103599]
[1764858824284,0.10308603,92683.0,92678.0,0.01103599]
[1764858825178,0.10308603,92683.0,92674.0,0.3609618]
[1764858825681,0.10308603,92683.0,92682.0,0.0020777]
[1764858827485,0.0993284,92675.0,92674.0,0.0001618]
[1764858827685,0.10174842,92675.0,92674.0,0.0001618]
[1764858828283,0.10308693,92675.0,92674.0,0.0001618]
[1764858828676,0.10308693,92675.0,92674.0,0.0041618]
[1764858828884,0.10308693,92675.0,92674.0,0.0051618]
[1764858832486,0.04726853,92675.0,92674.0,0.0905718]
[1764858832874,0.09229853,92675.0,92674.0,0.0905718]
[1764858833785,0.09229853,92675.0,92674.0,0.0051618]
[1764858833982,0.1243997,92664.0,92663.0,0.3608]
[1764858834183,0.12448072,92664.0,92663.0,0.3608]
[1764858834400,0.1244011,92652.0,92651.0,0.3608]
[1764858835094,0.11361,92652.0,92651.0,0.45721787]
[1764858835287,0.04351,92652.0,92651.0,0.45721787]
[1764858835587,0.04484851,92652.0,92651.0,0.45721787]
[1764858835886,0.04484851,92652.0,92651.0,0.45921787]
[1764858836788,0.00133851,92652.0,92651.0,0.45921787]
[1764858840095,0.08987851,92652.0,92651.0,0.45921787]
[1764858840278,0.24494851,92652.0,92651.0,0.3628]
[1764858840586,0.0993321,92643.0,92642.0,0.0001619]
[1764858840777,0.24183033,92643.0,92642.0,0.0001619]
[1764858840981,0.0993342,92625.0,92624.0,0.00012482]
[1764858841175,0.00011001,92625.0,92605.0,0.0107965]
[1764858841379,0.01332423,92625.0,92624.0,0.08407149]
[1764858841581,0.10186423,92625.0,92624.0,0.04144149]
[1764858841983,0.10186423,92625.0,92624.0,0.40224149]
[1764858842185,0.0993353,92616.0,92615.0,0.00010823]
[1764858842487,0.0993353,92616.0,92606.0,0.02176041]
[1764858842488,0.0993363,92607.0,92606.0,0.00026996]
[1764858842690,0.08854,92585.0,92584.0,0.04278]
[1764858842885,0.08864625,92585.0,92584.0,0.04278]
[1764858843486,0.08864625,92585.0,92584.0,0.3608]
[1764858844081,0.00010625,92585.0,92584.0,0.44508]
[1764858844482,0.3608,92635.0,92624.0,0.0547443]
[1764858844688,0.0107936,92631.0,92624.0,0.0547443]
[1764858844991,0.010791,92653.0,92652.0,0.08428]
[1764858845181,0.056071,92653.0,92652.0,0.08428]
[1764858845383,0.04541891,92653.0,92652.0,0.44508]
[1764858845577,0.00013891,92653.0,92652.0,0.44508]
[1764858845783,0.04783893,92653.0,92652.0,0.44508]
[1764858845986,0.00013891,92653.0,92652.0,0.44508]
[1764858846293,0.0560719,92645.0,92644.0,0.3608]
[1764858846479,0.0107915,92649.0,92644.0,0.4558719]
[1764858846684,0.02333,92652.0,92644.0,0.44508]
[1764858846685,0.04770002,92645.0,92644.0,0.44508]
[1764858846891,0.08693,92644.0,92643.0,0.00016188]
[1764858847089,0.08935002,92644.0,92643.0,0.00016188]
[1764858847595,0.02333,92652.0,92647.0,0.0107915]
[1764858847901,0.00213891,92653.0,92652.0,0.08428]
[1764858848281,0.04541891,92653.0,92652.0,0.08428]
[1764858848487,0.001,92644.0,92643.0,0.00016188]
[1764858848681,0.00342002,92644.0,92643.0,0.08444188]
[1764858848883,0.001,92644.0,92643.0,0.08444188]
[1764858849083,0.0107913,92651.0,92644.0,0.010792]
[1764858849284,0.0107916,92648.0,92644.0,0.010792]
[1764858849493,0.0107916,92648.0,92643.0,0.01095388]
[1764858849693,0.002,92644.0,92643.0,0.05490388]
[1764858849889,0.01521202,92644.0,92643.0,0.04411188]
[1764858850094,0.10214202,92644.0,92643.0,0.00016188]
[1764858851293,0.10014202,92644.0,92643.0,0.00016188]
[1764858851890,0.10214202,92644.0,92643.0,0.00016188]
[1764858852489,0.097724,92627.0,92626.0,0.3608]
[1764858852800,0.08693,92615.0,92614.0,0.3608]
[1764858852997,0.08693,92603.0,92599.0,0.0107972]
[1764858853293,0.02333,92610.0,92596.0,0.3608]
[1764858853294,0.04528,92597.0,92596.0,0.3608]
[1764858853498,0.08693,92597.0,92596.0,0.3608]
[1764858853686,0.0107986,92587.0,92586.0,0.3608]
[1764858853894,0.02333,92596.0,92586.0,0.44508]
[1764858854090,0.0341276,92596.0,92586.0,0.3608]
[1764858854405,0.10014862,92587.0,92586.0,0.3608]
[1764858855192,0.0107991,92584.0,92578.0,0.3608]
[1764858855395,0.0107991,92584.0,92567.0,0.3608]
[1764858855396,0.08693,92568.0,92567.0,0.3608]
[1764858855594,0.02333,92580.0,92560.0,0.0108017]
[1764858855595,0.08693,92567.0,92560.0,0.0108017]
[1764858855901,0.08935002,92567.0,92552.0,0.0108027]
[1764858856102,0.01322102,92567.0,92559.0,0.3608]
[1764858856408,0.00013826,92566.0,92565.0,0.08428]
[1764858856700,0.04783828,92566.0,92565.0,0.04395]
[1764858856910,0.00013826,92566.0,92565.0,0.08428]
[1764858857601,0.00016197,92577.0,92576.0,0.0950799]
[1764858857908,0.00016197,92577.0,92576.0,0.4558799]
[1764858858608,0.00268472,92577.0,92576.0,0.44508]
[1764858859399,0.08961472,92577.0,92576.0,0.3608]
[1764858859802,0.010801,92568.0,92565.0,0.004]
[1764858859998,0.010801,92568.0,92561.0,0.3716017]
[1764858859999,0.08693,92562.0,92561.0,0.36036397]
[1764858860205,0.0108028,92551.0,92543.0,0.3608]
[1764858860404,0.00242002,92544.0,92543.0,0.44508]
[1764858860610,0.04770002,92544.0,92543.0,0.44508]
[1764858860907,0.00242002,92544.0,92543.0,0.44508]
[1764858861304,0.01093444,92550.0,92544.0,0.0108037]
[1764858861501,0.08693,92544.0,92543.0,0.3618]
[1764858861701,0.45015002,92544.0,92543.0,0.001]
[1764858861904,0.0108056,92528.0,92526.0,0.0002702]
[1764858862101,0.08943975,92527.0,92526.0,0.0002702]
[1764858863209,0.08943975,92527.0,92526.0,0.0022702]
[1764858863814,0.08943975,92527.0,92526.0,0.0042702]
[1764858864005,0.13943975,92527.0,92526.0,0.0042702]
[1764858864206,0.08943975,92527.0,92526.0,0.0042702]
[1764858864416,0.08943975,92527.0,92526.0,0.0022702]
[1764858864608,0.08943975,92527.0,92526.0,0.0032702]
[1764858865212,8.973e-05,92527.0,92526.0,0.0865502]
[1764858865413,0.00016207,92536.0,92535.0,0.0950847]
[1764858865720,0.3608,92564.0,92535.0,0.0950847]
[1764858865721,0.0108015,92563.0,92535.0,0.38263]
[1764858866017,0.3608,92564.0,92560.0,0.0108017]
[1764858866312,0.00242002,92561.0,92560.0,0.04395]
[1764858866513,0.00242002,92561.0,92553.0,0.3608]
[1764858866514,0.04782829,92561.0,92553.0,0.3608]
[1764858866704,0.05850252,92554.0,92553.0,0.3608]
[1764858867007,0.08693,92549.0,92548.0,0.00016207]
[1764858867309,0.08935002,92549.0,92548.0,0.00016207]
[1764858868714,0.09435002,92549.0,92548.0,0.00016207]
[1764858869107,0.08935002,92549.0,92548.0,0.00016207]
[1764858869416,0.09235002,92549.0,92548.0,0.00016207]
[1764858869810,0.0108049,92534.0,92528.0,0.3608]
[1764858870007,0.08703216,92533.0,92532.0,0.0108051]
[1764858870311,0.08703216,92533.0,92528.0,0.3608]
[1764858870312,0.00010216,92533.0,92528.0,0.3608]
[1764858870517,0.08935002,92529.0,92528.0,0.3608]
[1764858870902,0.08935002,92529.0,92528.0,0.3618]
[1764858871812,0.08935002,92529.0,92528.0,0.3628]
[1764858872108,0.08935002,92529.0,92526.0,0.0002702]
[1764858872313,0.08935002,92527.0,92526.0,0.0002702]
[1764858872513,0.08693,92519.0,92511.0,0.3608]
[1764858872715,0.10015662,92519.0,92515.0,0.010807]
[1764858872909,0.00242002,92519.0,92518.0,0.05484488]
[1764858873107,0.00242002,92519.0,92518.0,0.09517488]
[1764858873411,0.001,92529.0,92518.0,8.818e-05]
[1764858873612,0.0108062,92523.0,92520.0,0.3608]
[1764858873809,0.00242002,92521.0,92520.0,0.40475]
[1764858874004,0.0108062,92523.0,92520.0,0.40475]
[1764858874210,0.08011002,92521.0,92520.0,0.3608]
[1764858874806,0.08011002,92521.0,92520.0,0.3618]
[1764858875015,0.0108057,92527.0,92520.0,0.3628]
[1764858875213,0.3608,92531.0,92526.0,0.04171]
[1764858875419,0.00242002,92527.0,92526.0,0.08006]
[1764858875615,0.02333,92535.0,92531.0,0.0108052]
[1764858875919,0.02333,92535.0,92532.0,0.3608]
[1764858876115,0.04341218,92533.0,92520.0,0.3628]
[1764858876419,0.00010216,92533.0,92532.0,0.08006]
[1764858876720,0.00252218,92533.0,92525.0,0.0108058]
[1764858877013,0.00242002,92526.0,92525.0,0.0108058]
[1764858877219,0.01090716,92533.0,92530.0,0.0108052]
[1764858877423,0.00010216,92533.0,92532.0,0.08006]
[1764858877809,0.00210216,92533.0,92532.0,0.08006]
[1764858878307,0.010803,92550.0,92532.0,0.08006]
[1764858878514,0.02188,92554.0,92537.0,0.0908645]
[1764858878721,0.3608,92564.0,92553.0,0.08006]
[1764858878903,0.3608,92564.0,92545.0,0.0108035]
[1764858878904,0.3716013,92564.0,92563.0,0.04171]
[1764858879215,0.3608,92564.0,92561.0,0.0108016]
[1764858879428,0.010802,92559.0,92557.0,0.0108021]
[1764858879606,0.010803,92550.0,92549.0,0.04187207]
[1764858879807,0.110373,92550.0,92549.0,0.00016207]
[1764858881120,0.051693,92550.0,92549.0,0.00016207]
[1764858881310,0.167373,92550.0,92549.0,0.00116207]
[1764858881511,0.117373,92550.0,92549.0,0.00116207]
[1764858881909,0.115373,92550.0,92549.0,0.00016207]
[1764858882214,0.005,92550.0,92549.0,0.07671207]
[1764858882414,0.09789,92550.0,92549.0,0.00016207]
[1764858882817,0.11985688,92550.0,92549.0,0.00016207]
[1764858883018,0.17085688,92550.0,92549.0,0.00016207]
[1764858883314,0.11685688,92550.0,92549.0,0.00116207]
[1764858883622,0.12185688,92550.0,92549.0,0.00116207]
[1764858883816,0.12285688,92550.0,92549.0,0.00116207]
[1764858884115,0.12085688,92550.0,92549.0,0.00016207]
[1764858884617,0.16185688,92550.0,92549.0,0.00016207]
[1764858885123,0.17185688,92550.0,92549.0,0.00016207]
[1764858886216,0.09289,92535.0,92534.0,0.3608]
[1764858886425,0.09289,92535.0,92526.0,0.3608]
[1764858886426,0.12666158,92535.0,92526.0,0.3608]
[1764858886624,0.08518562,92527.0,92526.0,0.3608]
[1764858886809,0.0108066,92519.0,92517.0,0.0108068]
[1764858887014,0.00242002,92519.0,92517.0,0.0108068]
[1764858887217,0.00242002,92519.0,92518.0,0.03684818]
[1764858887427,0.03973002,92519.0,92518.0,0.03684818]
[1764858887728,0.00016207,92528.0,92525.0,0.0108058]
[1764858887927,0.00242002,92526.0,92525.0,0.0108058]
[1764858888224,0.10821101,92526.0,92522.0,0.0108062]
[1764858888427,0.02302519,92525.0,92524.0,0.4432059]
[1764858888724,0.01096767,92528.0,92527.0,0.03676]
[1764858888916,0.03400497,92528.0,92527.0,0.03676]
[1764858889121,0.03400487,92528.0,92527.0,0.03676]
[1764858889528,0.02319937,92528.0,92527.0,0.0716]
[1764858890433,0.07196,92527.0,92526.0,0.0108057]
[1764858890633,0.03731,92525.0,92524.0,0.3608]
[1764858890926,0.0230373,92525.0,92524.0,0.4324]
[1764858891229,0.07196,92525.0,92524.0,0.3608]
[1764858891420,0.09503285,92525.0,92524.0,0.3608]
[1764858892827,0.09503285,92525.0,92524.0,0.4334]
[1764858893127,0.09503285,92525.0,92524.0,0.3618]
[1764858893426,0.02307285,92525.0,92524.0,0.4334]
[1764858893626,0.00016207,92528.0,92524.0,0.4334]
[1764858893627,0.00016207,92528.0,92527.0,0.0824056]
[1764858894316,0.02323372,92528.0,92527.0,0.0824056]
[1764858895225,0.09519372,92528.0,92527.0,0.0716]
[1764858895422,0.07196,92525.0,92524.0,0.3618]
[1764858895623,0.09745684,92525.0,92524.0,0.3608]
[1764858896020,0.07196,92519.0,92518.0,8.818e-05]
[1764858896225,0.09745684,92519.0,92518.0,8.818e-05]
[1764858896433,0.10826344,92519.0,92518.0,0.03684818]
[1764858896931,0.02549684,92519.0,92518.0,0.07168818]
[1764858897128,0.02307682,92519.0,92518.0,0.07168818]
[1764858897319,0.0108064,92521.0,92520.0,0.0716]
[1764858897629,0.02308312,92523.0,92521.0,0.0108063]
[1764858897836,0.048116,92524.0,92523.0,0.03676]
[1764858898133,0.07119915,92524.0,92523.0,0.03676]
[1764858898334,0.0481166,92519.0,92518.0,0.00308818]
[1764858898523,0.10826977,92519.0,92518.0,0.00308818]
[1764858898832,0.10826977,92519.0,92518.0,0.00208818]
[1764858899028,0.06281317,92519.0,92518.0,0.07168818]
[1764858899233,0.02308315,92519.0,92518.0,0.07168818]
[1764858899432,0.0108065,92520.0,92518.0,8.818e-05]
[1764858899632,0.02550317,92519.0,92518.0,0.07368818]
[1764858899834,0.02308315,92519.0,92518.0,0.07468818]
[1764858900034,0.0108056,92527.0,92526.0,0.03484]
[1764858900230,0.0827666,92519.0,92518.0,0.00308818]
[1764858900440,0.1036979,92508.0,92494.0,0.3608]
[1764858900627,0.0108101,92489.0,92483.0,0.0108107]
[1764858900824,0.0108101,92489.0,92467.0,0.09647305]
[1764858900825,0.07196,92473.0,92471.0,0.05788383]
[1764858901125,0.07196,92468.0,92463.0,0.01071329]
[1764858901324,0.00016216,92481.0,92455.0,0.05]
[1764858901325,0.03731,92456.0,92455.0,0.0608139]
[1764858901530,8.828e-05,92456.0,92455.0,0.10841919]
[1764858901830,0.09749186,92456.0,92455.0,0.02641064]
[1764858902221,0.0744683,92456.0,92455.0,0.02641064]
[1764858902432,0.53771766,92456.0,92455.0,0.01216254]
[1764858902827,0.53771766,92456.0,92455.0,0.02516254]
[1764858902828,0.60361764,92456.0,92455.0,0.02516254]
[1764858903033,0.60361764,92456.0,92455.0,0.02716254]
[1764858903235,0.09629764,92456.0,92455.0,0.02716254]
[1764858903533,0.09629764,92456.0,92455.0,0.09776254]
[1764858903534,0.00108828,92456.0,92455.0,0.09776254]
[1764858903927,0.27543585,92490.0,92455.0,0.49776254]
[1764858904122,0.02322855,92480.0,92455.0,0.02616254]
[1764858904438,0.27543585,92480.0,92455.0,0.02616254]
[1764858904737,0.00016216,92481.0,92480.0,0.07066]
[1764858904921,0.02093,92505.0,92469.0,0.0108123]
[1764858905122,0.2148,92511.0,92503.0,0.07066]
[1764858905326,0.0108088,92501.0,92491.0,0.0108098]
[1764858905632,0.27543585,92510.0,92508.0,0.0108078]
[1764858905832,0.0108068,92518.0,92508.0,0.0361]
[1764858905833,0.00242002,92509.0,92508.0,0.0361]
[1764858906134,0.00016216,92518.0,92517.0,0.07066]
[1764858906529,0.00258218,92518.0,92517.0,0.07066]
[1764858906730,0.0108068,92517.0,92510.0,0.0108076]
[1764858907121,0.00016216,92518.0,92517.0,0.0361]
[1764858907329,0.3608,92547.0,92546.0,0.07066]
[1764858907630,0.05808075,92558.0,92517.0,0.9188868]
[1764858907631,0.0108021,92558.0,92552.0,0.0108026]
[1764858907828,0.27543585,92570.0,92552.0,0.0108026]
[1764858908032,0.0108023,92556.0,92551.0,0.3608]
[1764858908334,0.0108025,92555.0,92546.0,0.0108033]
[1764858908530,0.3608,92561.0,92544.0,0.00016207]
[1764858908731,0.0108032,92549.0,92548.0,0.07066]
[1764858908924,0.0108032,92549.0,92544.0,0.00016207]
[1764858909634,0.001,92556.0,92555.0,0.07066]
[1764858909635,0.006,92556.0,92555.0,0.07066]
[1764858909823,0.006,92556.0,92555.0,0.43146]
[1764858910225,0.00016207,92563.0,92562.0,0.0814616]
[1764858910734,0.0107992,92583.0,92578.0,0.0361]
[1764858911031,0.010799,92585.0,92584.0,0.0361]
[1764858911438,0.010799,92585.0,92574.0,0.3608]
[1764858911636,0.00016207,92589.0,92574.0,0.3608]
[1764858911837,0.001,92583.0,92574.0,0.3716001]
[1764858912432,0.00342002,92583.0,92582.0,0.43146]
[1764858912638,0.002,92585.0,92584.0,0.0361]
[1764858912842,0.002,92585.0,92584.0,0.07066]
[1764858913041,0.00060429,92589.0,92588.0,0.07066]
[1764858913345,0.3608,92620.0,92605.0,0.07066]
[1764858913346,0.3715949,92620.0,92605.0,0.07066]
[1764858913532,0.05808075,92643.0,92624.0,0.0107943]
[1764858913533,0.3608,92643.0,92624.0,0.0107943]
[1764858913840,0.29668585,92650.0,92610.0,0.27543585]
[1764858914042,0.0107938,92629.0,92619.0,0.00016198]
[1764858914231,0.27543585,92630.0,92619.0,0.00016198]
[1764858914232,0.01321482,92620.0,92619.0,0.36096198]
[1764858914438,0.0107947,92621.0,92619.0,0.00016198]
[1764858914638,0.07762002,92620.0,92619.0,0.00016198]
[1764858914834,0.0107933,92634.0,92619.0,0.00016198]
[1764858915034,0.0107938,92629.0,92623.0,0.3608]
[1764858915230,0.0107931,92635.0,92623.0,0.3608]
[1764858915431,0.29668585,92650.0,92634.0,0.3608]
[1764858915638,0.0107908,92654.0,92636.0,0.43146]
[1764858915940,0.0107908,92654.0,92645.0,0.3608]
[1764858916136,0.0107919,92645.0,92637.0,0.3608]
[1764858916339,0.00026985,92646.0,92637.0,0.3608]
[1764858916537,0.00026985,92646.0,92645.0,0.43146]
[1764858916948,0.00016198,92655.0,92645.0,0.43146]
[1764858917137,0.0107908,92654.0,92645.0,0.43146]
[1764858917344,0.00016198,92655.0,92653.0,0.3608]
[1764858917545,0.002582,92655.0,92653.0,0.3608]
[1764858917733,0.00242002,92654.0,92653.0,0.3608]
[1764858917932,0.00242002,92654.0,92641.0,0.00016198]
[1764858917933,0.002,92646.0,92645.0,0.0361]
[1764858918148,0.00016198,92655.0,92654.0,0.07066]
[1764858918337,0.00016198,92655.0,92654.0,0.43146]
[1764858918539,0.00416198,92655.0,92654.0,0.43146]
[1764858919048,0.00016198,92655.0,92654.0,0.43146]
[1764858919547,0.0107913,92651.0,92644.0,0.3608]
[1764858919748,0.00016198,92655.0,92644.0,0.3608]
[1764858919946,0.0107916,92648.0,92644.0,0.3608]
[1764858920148,0.010791,92653.0,92644.0,0.3608]
[1764858920349,0.00242002,92645.0,92644.0,0.3608]
[1764858920550,0.00216198,92655.0,92644.0,0.3608]
[1764858920746,0.0752,92645.0,92644.0,0.3608]
[1764858920950,0.0752,92642.0,92641.0,0.00016198]
[1764858921250,0.21762002,92642.0,92641.0,0.00016198]
[1764858921447,0.00242002,92642.0,92641.0,0.00016198]
[1764858921649,0.0107914,92650.0,92641.0,0.00016198]
[1764858921850,0.001,92648.0,92645.0,0.3608]
[1764858922048,0.07762002,92646.0,92645.0,0.3608]
[1764858922250,0.038,92642.0,92641.0,0.00016198]
[1764858922552,0.07862002,92642.0,92641.0,0.00016198]
[1764858922943,0.21862002,92642.0,92641.0,0.00016198]
[1764858923140,0.0859943,92624.0,92623.0,0.3608]
[1764858923846,0.0107943,92624.0,92623.0,0.3608]
[1764858924044,0.0107934,92632.0,92624.0,0.0107943]
[1764858924256,0.0107934,92632.0,92623.0,0.3608]
[1764858924257,0.00016198,92637.0,92636.0,0.07066]
[1764858924471,0.001,92642.0,92636.0,0.07066]
[1764858924472,0.00057078,92642.0,92641.0,0.0814524]